[Event "*** Titled Tuesday Blitz"]
[Site "Chess.com"]
[Date "2021.02.02"]
[Round "10"]
[White "Papullon"]
[Black "TurboSteen"]
[Result "1-0"]
[WhiteElo "2137"]
[BlackElo "2031"]
[TimeControl "180+1"]
[EndTime "11:53:54 PST"]
[Termination "Papullon won by checkmate"]

1. d4 {[%clk 0:03:00.9]} 1... Nf6 {[%clk 0:02:48.9]} 2. Bg5 {[%clk 0:03:00.3]}
2... Ne4 {[%clk 0:02:47.6]} 3. Bh4 {[%clk 0:03:00.1]} 3... g5 {[%clk 0:02:45]}
4. f3 {[%clk 0:02:58.8]} 4... gxh4 {[%clk 0:02:44.1]} 5. fxe4 {[%clk 0:02:58.9]}
5... c5 {[%clk 0:02:43.8]} 6. e3 {[%clk 0:02:57.7]} 6... Bh6 {[%clk 0:02:40.4]}
7. Nd2 {[%clk 0:02:55.7]} 7... Bxe3 {[%clk 0:02:37.9]} 8. d5 {[%clk 0:02:55.2]}
8... e6 {[%clk 0:02:24.4]} 9. Nc4 {[%clk 0:02:51]} 9... Bd4 {[%clk 0:02:11.9]}
10. c3 {[%clk 0:02:49.7]} 10... Bxg1 {[%clk 0:02:07.1]} 11. Rxg1 {[%clk
0:02:48.5]} 11... exd5 {[%clk 0:02:06.5]} 12. exd5 {[%clk 0:02:44.5]} 12... d6
{[%clk 0:02:05]} 13. Qh5 {[%clk 0:02:37.2]} 13... b5 {[%clk 0:01:59.4]} 14. Ne3
{[%clk 0:02:31.9]} 14... c4 {[%clk 0:01:46.2]} 15. O-O-O {[%clk 0:02:29.8]}
15... Nd7 {[%clk 0:01:37.8]} 16. Nf5 {[%clk 0:02:23.9]} 16... Ne5 {[%clk
0:01:35]} 17. Re1 {[%clk 0:02:19.2]} 17... Bxf5 {[%clk 0:01:29]} 18. Qxf5 {[%clk
0:02:17.3]} 18... Qb6 {[%clk 0:01:25.9]} 19. Bxc4 {[%clk 0:01:50.2]} 19... bxc4
{[%clk 0:01:20.6]} 20. Rxe5+ {[%clk 0:01:50.1]} 20... dxe5 {[%clk 0:01:17.3]}
21. Qxe5+ {[%clk 0:01:49.9]} 21... Kd7 {[%clk 0:01:15.7]} 22. Qf5+ {[%clk
0:01:47.5]} 22... Kc7 {[%clk 0:01:09.4]} 23. Qxf7+ {[%clk 0:01:47.1]} 23... Kd6
{[%clk 0:01:08.8]} 24. Re1 {[%clk 0:01:42.9]} 24... Raf8 {[%clk 0:01:00.9]} 25.
Re6+ {[%clk 0:01:38.1]} 25... Kc5 {[%clk 0:00:59.1]} 26. Qe7+ {[%clk 0:01:36.5]}
26... Kxd5 {[%clk 0:00:55.5]} 27. Qd7+ {[%clk 0:01:30.8]} 27... Kc5 {[%clk
0:00:52.1]} 28. Re5# {[%clk 0:01:30.5]} 1-0

[Event "*** Titled Tuesday Blitz"]
[Site "Chess.com"]
[Date "2021.02.02"]
[Round "10"]
[White "dosto07"]
[Black "Skat2704"]
[Result "0-1"]
[WhiteElo "2425"]
[BlackElo "2518"]
[TimeControl "180+1"]
[EndTime "11:53:58 PST"]
[Termination "Skat2704 won by resignation"]

1. e4 {[%clk 0:03:00.9]} 1... c5 {[%clk 0:02:57.9]} 2. Nf3 {[%clk 0:02:59.6]}
2... Nc6 {[%clk 0:02:56.2]} 3. Bb5 {[%clk 0:02:59]} 3... e6 {[%clk 0:02:54.1]}
4. O-O {[%clk 0:02:57.3]} 4... Nge7 {[%clk 0:02:52.2]} 5. Re1 {[%clk 0:02:57.2]}
5... a6 {[%clk 0:02:51.2]} 6. Bf1 {[%clk 0:02:56.5]} 6... d5 {[%clk 0:02:47.8]}
7. exd5 {[%clk 0:02:54.4]} 7... Nxd5 {[%clk 0:02:43.3]} 8. d4 {[%clk 0:02:52.9]}
8... Be7 {[%clk 0:02:39]} 9. dxc5 {[%clk 0:02:46]} 9... O-O {[%clk 0:02:36.5]}
10. c4 {[%clk 0:02:45.5]} 10... Nf6 {[%clk 0:02:33.7]} 11. Nc3 {[%clk
0:02:39.4]} 11... Bxc5 {[%clk 0:02:31.4]} 12. Bg5 {[%clk 0:02:36.7]} 12... Qb6
{[%clk 0:02:19.5]} 13. Qe2 {[%clk 0:02:24.9]} 13... Nd4 {[%clk 0:02:16.2]} 14.
Nxd4 {[%clk 0:02:22.8]} 14... Bxd4 {[%clk 0:02:16.4]} 15. Rad1 {[%clk
0:02:09.9]} 15... e5 {[%clk 0:02:15]} 16. Bxf6 {[%clk 0:02:06]} 16... Qxf6
{[%clk 0:02:12.7]} 17. Nd5 {[%clk 0:02:05.8]} 17... Qh6 {[%clk 0:02:10.7]} 18.
Kh1 {[%clk 0:01:51.5]} 18... Be6 {[%clk 0:02:08.4]} 19. b3 {[%clk 0:01:26.8]}
19... Bxd5 {[%clk 0:02:05.4]} 20. cxd5 {[%clk 0:01:25.9]} 20... Bc3 {[%clk
0:02:05]} 21. g3 {[%clk 0:01:03.6]} 21... Bxe1 {[%clk 0:02:02.4]} 22. Rxe1
{[%clk 0:01:02.7]} 22... Rfe8 {[%clk 0:02:00.6]} 23. Bg2 {[%clk 0:01:02]} 23...
Rad8 {[%clk 0:01:58.7]} 24. f4 {[%clk 0:00:55.6]} 24... e4 {[%clk 0:01:54.6]}
25. Qd2 {[%clk 0:00:39.9]} 25... f5 {[%clk 0:01:51.5]} 26. Bh3 {[%clk
0:00:30.9]} 26... Qxh3 {[%clk 0:01:48.4]} 0-1

[Event "*** Titled Tuesday Blitz"]
[Site "Chess.com"]
[Date "2021.02.02"]
[Round "10"]
[White "HeadShotRomanTest"]
[Black "ridnani2021"]
[Result "0-1"]
[WhiteElo "2294"]
[BlackElo "2133"]
[TimeControl "180+1"]
[EndTime "11:54:06 PST"]
[Termination "ridnani2021 won by resignation"]

1. e4 {[%clk 0:03:00.9]} 1... c5 {[%clk 0:02:58.3]} 2. Nf3 {[%clk 0:03:00.6]}
2... d6 {[%clk 0:02:58.7]} 3. d4 {[%clk 0:03:00.3]} 3... cxd4 {[%clk 0:02:59.6]}
4. Nxd4 {[%clk 0:03:01.1]} 4... Nf6 {[%clk 0:03:00.5]} 5. Nc3 {[%clk 0:03:01.2]}
5... a6 {[%clk 0:03:01.1]} 6. h3 {[%clk 0:03:01.4]} 6... e5 {[%clk 0:03:01]} 7.
Nde2 {[%clk 0:03:01.1]} 7... b5 {[%clk 0:03:01.3]} 8. g4 {[%clk 0:02:58.5]} 8...
Bb7 {[%clk 0:03:01.8]} 9. Bg2 {[%clk 0:02:57.7]} 9... b4 {[%clk 0:03:02.1]} 10.
Nd5 {[%clk 0:02:57.7]} 10... Nxd5 {[%clk 0:03:02.4]} 11. exd5 {[%clk 0:02:58.6]}
11... Nd7 {[%clk 0:03:02]} 12. O-O {[%clk 0:02:56.8]} 12... g6 {[%clk 0:03:01]}
13. Be3 {[%clk 0:02:53.9]} 13... Bg7 {[%clk 0:03:00.6]} 14. Qd2 {[%clk
0:02:51.2]} 14... O-O {[%clk 0:02:56.7]} 15. Rac1 {[%clk 0:02:47.4]} 15... Rb8
{[%clk 0:02:55.6]} 16. c4 {[%clk 0:02:46.5]} 16... bxc3 {[%clk 0:02:55.1]} 17.
Nxc3 {[%clk 0:02:46.4]} 17... Qa5 {[%clk 0:02:54]} 18. Rfd1 {[%clk 0:02:31]}
18... Rfc8 {[%clk 0:02:50.4]} 19. a3 {[%clk 0:02:23.9]} 19... f5 {[%clk
0:02:48.6]} 20. gxf5 {[%clk 0:02:21.8]} 20... gxf5 {[%clk 0:02:49.5]} 21. Qe2
{[%clk 0:02:16.5]} 21... f4 {[%clk 0:02:47.1]} 22. Bd2 {[%clk 0:02:15.8]} 22...
Qd8 {[%clk 0:02:44.2]} 23. Qg4 {[%clk 0:02:10.7]} 23... Nf6 {[%clk 0:02:42.5]}
24. Qe6+ {[%clk 0:02:10.2]} 24... Kh8 {[%clk 0:02:42.9]} 25. Ne4 {[%clk
0:01:58.8]} 25... Rxc1 {[%clk 0:02:38.7]} 26. Rxc1 {[%clk 0:01:58.1]} 26... Nxe4
{[%clk 0:02:38.6]} 27. Bxe4 {[%clk 0:01:59]} 27... Bc8 {[%clk 0:02:38.4]} 28.
Rxc8 {[%clk 0:01:50.7]} 28... Qxc8 {[%clk 0:02:31.6]} 29. Qxd6 {[%clk
0:01:48.1]} 29... Rxb2 {[%clk 0:02:26.6]} 30. Bc3 {[%clk 0:01:41.7]} 30... Rb7
{[%clk 0:02:09.6]} 31. Bxe5 {[%clk 0:01:34.5]} 31... Qg8 {[%clk 0:01:54.3]} 32.
Kh2 {[%clk 0:01:28.4]} 32... Rf7 {[%clk 0:01:49.6]} 33. Qe6 {[%clk 0:01:11.7]}
33... f3 {[%clk 0:01:37.6]} 34. d6 {[%clk 0:01:05.7]} 34... Bxe5+ {[%clk
0:01:35.7]} 35. Qxe5+ {[%clk 0:01:06.6]} 35... Qg7 {[%clk 0:01:35.9]} 36. Qxg7+
{[%clk 0:01:00.2]} 36... Kxg7 {[%clk 0:01:35.5]} 37. Bxf3 {[%clk 0:01:00.2]}
37... Rxf3 {[%clk 0:01:34.9]} 0-1

[Event "*** Titled Tuesday Blitz"]
[Site "Chess.com"]
[Date "2021.02.02"]
[Round "10"]
[White "xberli"]
[Black "Loy_Konstantin"]
[Result "1-0"]
[WhiteElo "2499"]
[BlackElo "2381"]
[TimeControl "180+1"]
[EndTime "11:54:09 PST"]
[Termination "xberli won by resignation"]

1. c4 {[%clk 0:03:00.9]} 1... c5 {[%clk 0:02:56.6]} 2. Nc3 {[%clk 0:03:00.7]}
2... Nc6 {[%clk 0:02:56.1]} 3. g3 {[%clk 0:03:00.6]} 3... g6 {[%clk 0:02:56.5]}
4. Bg2 {[%clk 0:03:00.5]} 4... Bg7 {[%clk 0:02:57.1]} 5. e4 {[%clk 0:03:00.6]}
5... Nf6 {[%clk 0:02:57.8]} 6. Nge2 {[%clk 0:02:58.9]} 6... O-O {[%clk
0:02:57.9]} 7. O-O {[%clk 0:02:58.2]} 7... Ne8 {[%clk 0:02:58.1]} 8. d3 {[%clk
0:02:55.9]} 8... Nc7 {[%clk 0:02:58.5]} 9. Be3 {[%clk 0:02:54.7]} 9... Ne6
{[%clk 0:02:59]} 10. f4 {[%clk 0:02:52.5]} 10... Ned4 {[%clk 0:02:59]} 11. f5
{[%clk 0:02:49.2]} 11... d6 {[%clk 0:02:57.7]} 12. g4 {[%clk 0:02:42.2]} 12...
e6 {[%clk 0:02:49.4]} 13. Ng3 {[%clk 0:02:36]} 13... Be5 {[%clk 0:02:41.4]} 14.
Qd2 {[%clk 0:02:23.8]} 14... Kh8 {[%clk 0:02:18]} 15. Bg5 {[%clk 0:02:12.2]}
15... Qa5 {[%clk 0:01:53]} 16. fxg6 {[%clk 0:02:06.4]} 16... hxg6 {[%clk
0:01:48]} 17. Bf6+ {[%clk 0:02:05]} 17... Bxf6 {[%clk 0:01:40.5]} 18. Rxf6
{[%clk 0:02:05.9]} 18... Kg7 {[%clk 0:01:36.3]} 19. Raf1 {[%clk 0:02:05.4]}
19... Ne5 {[%clk 0:01:29.5]} 20. Qg5 {[%clk 0:01:58.5]} 20... Rh8 {[%clk
0:01:17.7]} 21. Nh5+ {[%clk 0:01:42.5]} 21... Rxh5 {[%clk 0:00:56.1]} 22. gxh5
{[%clk 0:01:43.4]} 22... Bd7 {[%clk 0:00:26.6]} 23. Rxf7+ {[%clk 0:01:36.9]} 1-0

[Event "*** Titled Tuesday Blitz"]
[Site "Chess.com"]
[Date "2021.02.02"]
[Round "10"]
[White "c_r_e_e_p_e_r"]
[Black "m_ezat"]
[Result "0-1"]
[WhiteElo "2386"]
[BlackElo "2547"]
[TimeControl "180+1"]
[EndTime "11:54:20 PST"]
[Termination "m_ezat won by checkmate"]

1. e4 {[%clk 0:03:00.9]} 1... e5 {[%clk 0:02:58.9]} 2. Nc3 {[%clk 0:03:00.9]}
2... Nf6 {[%clk 0:02:57.6]} 3. f4 {[%clk 0:03:01.4]} 3... d5 {[%clk 0:02:54.1]}
4. fxe5 {[%clk 0:03:01.9]} 4... Nxe4 {[%clk 0:02:54.1]} 5. d3 {[%clk 0:03:02.6]}
5... Qh4+ {[%clk 0:02:47.9]} 6. g3 {[%clk 0:03:02.8]} 6... Nxg3 {[%clk 0:02:48]}
7. Nf3 {[%clk 0:03:03.5]} 7... Qh5 {[%clk 0:02:48.2]} 8. Nxd5 {[%clk 0:03:03.5]}
8... Nxh1 {[%clk 0:02:36.8]} 9. Nxc7+ {[%clk 0:03:03.4]} 9... Kd8 {[%clk
0:02:37.2]} 10. Nxa8 {[%clk 0:03:04.3]} 10... Bg4 {[%clk 0:02:31.8]} 11. Bg2
{[%clk 0:02:45.8]} 11... Nc6 {[%clk 0:02:26.9]} 12. Bf4 {[%clk 0:02:28.4]} 12...
Nd4 {[%clk 0:02:20.8]} 13. Bxh1 {[%clk 0:02:13.6]} 13... Bxf3 {[%clk 0:01:59.8]}
14. Bxf3 {[%clk 0:02:05.8]} 14... Nxf3+ {[%clk 0:01:59.3]} 15. Kf2 {[%clk
0:01:57.7]} 15... Bc5+ {[%clk 0:01:58.9]} 16. Kg3 {[%clk 0:01:42.6]} 16... g5
{[%clk 0:01:31.4]} 17. Qxf3 {[%clk 0:01:17.6]} 17... gxf4+ {[%clk 0:01:30.7]}
18. Kxf4 {[%clk 0:01:17.9]} 18... Qh4+ {[%clk 0:01:28.5]} 19. Kf5 {[%clk
0:01:11.9]} 19... Kc8 {[%clk 0:01:22.4]} 20. d4 {[%clk 0:00:45.7]} 20... Rg8
{[%clk 0:01:19]} 21. Qf4 {[%clk 0:00:29.3]} 21... Qh3+ {[%clk 0:01:18.1]} 22.
Kf6 {[%clk 0:00:24.1]} 22... Qe6# {[%clk 0:01:16.9]} 0-1

[Event "*** Titled Tuesday Blitz"]
[Site "Chess.com"]
[Date "2021.02.02"]
[Round "10"]
[White "Larciano"]
[Black "NovikovaGalina"]
[Result "0-1"]
[WhiteElo "1749"]
[BlackElo "2227"]
[TimeControl "180+1"]
[EndTime "11:54:24 PST"]
[Termination "NovikovaGalina won by checkmate"]

1. e4 {[%clk 0:03:00.9]} 1... e6 {[%clk 0:03:00]} 2. d4 {[%clk 0:03:00.5]} 2...
d5 {[%clk 0:03:00.9]} 3. Nc3 {[%clk 0:03:00.8]} 3... Bb4 {[%clk 0:03:00.4]} 4.
exd5 {[%clk 0:03:01]} 4... exd5 {[%clk 0:03:01.3]} 5. Bd3 {[%clk 0:03:01.2]}
5... Nf6 {[%clk 0:03:00.9]} 6. a3 {[%clk 0:03:01.4]} 6... Ba5 {[%clk 0:02:57.8]}
7. Qf3 {[%clk 0:02:56.8]} 7... Nc6 {[%clk 0:02:56.1]} 8. Ne2 {[%clk 0:02:56.9]}
8... Be6 {[%clk 0:02:46.5]} 9. O-O {[%clk 0:02:56.3]} 9... Qd7 {[%clk
0:02:46.8]} 10. h3 {[%clk 0:02:55.1]} 10... h6 {[%clk 0:02:43.1]} 11. Nf4 {[%clk
0:02:53.2]} 11... O-O-O {[%clk 0:02:42]} 12. Nxe6 {[%clk 0:02:43.8]} 12... fxe6
{[%clk 0:02:42.9]} 13. Ne2 {[%clk 0:02:44]} 13... Rdf8 {[%clk 0:02:37.5]} 14.
Qg3 {[%clk 0:02:37.7]} 14... g5 {[%clk 0:02:32.4]} 15. b4 {[%clk 0:02:36.9]}
15... Bb6 {[%clk 0:02:32.1]} 16. c3 {[%clk 0:02:37.2]} 16... Rhg8 {[%clk
0:02:27.2]} 17. a4 {[%clk 0:02:33.7]} 17... a5 {[%clk 0:02:20.3]} 18. bxa5
{[%clk 0:02:25.9]} 18... Bxa5 {[%clk 0:02:21.2]} 19. Ba3 {[%clk 0:02:25.5]}
19... Rf7 {[%clk 0:02:20.3]} 20. Rab1 {[%clk 0:02:18.8]} 20... Nh5 {[%clk
0:02:19.6]} 21. Qg4 {[%clk 0:02:15.1]} 21... Nf4 {[%clk 0:02:18.5]} 22. Rfe1
{[%clk 0:02:03.5]} 22... h5 {[%clk 0:02:16.3]} 23. Qg3 {[%clk 0:01:54.7]} 23...
h4 {[%clk 0:02:15.2]} 24. Qe3 {[%clk 0:01:51.5]} 24... Nxd3 {[%clk 0:02:10.3]}
25. Qxd3 {[%clk 0:01:45.4]} 25... g4 {[%clk 0:02:11.2]} 26. hxg4 {[%clk
0:01:40.1]} 26... Rxg4 {[%clk 0:02:12.1]} 27. c4 {[%clk 0:01:21.3]} 27... Rfg7
{[%clk 0:02:10.7]} 28. g3 {[%clk 0:01:19.6]} 28... hxg3 {[%clk 0:02:09.6]} 29.
Nxg3 {[%clk 0:01:19.6]} 29... Bxe1 {[%clk 0:02:07.8]} 30. Rxe1 {[%clk
0:01:19.4]} 30... Nxd4 {[%clk 0:02:07.8]} 31. cxd5 {[%clk 0:01:16.4]} 31... Qxd5
{[%clk 0:02:05.5]} 32. Re3 {[%clk 0:00:53]} 32... Rh4 {[%clk 0:01:50.8]} 33. Kf1
{[%clk 0:00:49.1]} 33... Rh1+ {[%clk 0:01:25.8]} 34. Nxh1 {[%clk 0:00:46.6]}
34... Qxh1# {[%clk 0:01:26.7]} 0-1

[Event "*** Titled Tuesday Blitz"]
[Site "Chess.com"]
[Date "2021.02.02"]
[Round "10"]
[White "Kovalchuk94"]
[Black "Fischerev7"]
[Result "1/2-1/2"]
[WhiteElo "2634"]
[BlackElo "2410"]
[TimeControl "180+1"]
[EndTime "11:54:32 PST"]
[Termination "Game drawn by repetition"]

1. e4 {[%clk 0:03:00.9]} 1... c5 {[%clk 0:02:56.9]} 2. Nf3 {[%clk 0:03:01]} 2...
d6 {[%clk 0:02:56.9]} 3. d4 {[%clk 0:03:01.2]} 3... cxd4 {[%clk 0:02:57.8]} 4.
Nxd4 {[%clk 0:03:02.1]} 4... Nf6 {[%clk 0:02:58]} 5. Nc3 {[%clk 0:03:02.4]} 5...
a6 {[%clk 0:02:58.6]} 6. Rg1 {[%clk 0:03:02.3]} 6... e5 {[%clk 0:02:58.5]} 7.
Nb3 {[%clk 0:03:02.3]} 7... Be6 {[%clk 0:02:59.2]} 8. g4 {[%clk 0:03:02.4]} 8...
d5 {[%clk 0:02:59.9]} 9. exd5 {[%clk 0:03:03.3]} 9... Nxd5 {[%clk 0:03:00.5]}
10. Nxd5 {[%clk 0:03:03.9]} 10... Qxd5 {[%clk 0:03:00.9]} 11. Qxd5 {[%clk
0:03:04.1]} 11... Bxd5 {[%clk 0:03:01.8]} 12. Be3 {[%clk 0:03:04.7]} 12... Nd7
{[%clk 0:02:57.3]} 13. O-O-O {[%clk 0:03:03.4]} 13... Bf3 {[%clk 0:02:39.9]} 14.
Rd2 {[%clk 0:03:02.4]} 14... Rc8 {[%clk 0:02:19.3]} 15. g5 {[%clk 0:02:43.7]}
15... Nc5 {[%clk 0:02:07.1]} 16. Bh3 {[%clk 0:02:33.4]} 16... Nxb3+ {[%clk
0:02:05.2]} 17. axb3 {[%clk 0:02:32.8]} 17... Rd8 {[%clk 0:01:47.6]} 18. Rxd8+
{[%clk 0:02:30.4]} 18... Kxd8 {[%clk 0:01:48.5]} 19. Bb6+ {[%clk 0:02:28.5]}
19... Ke8 {[%clk 0:01:48.8]} 20. Bc7 {[%clk 0:01:59.2]} 20... f6 {[%clk
0:01:40.7]} 21. gxf6 {[%clk 0:01:53.6]} 21... gxf6 {[%clk 0:01:41.6]} 22. Rg3
{[%clk 0:01:13.1]} 22... Bh6+ {[%clk 0:01:27.3]} 23. Kb1 {[%clk 0:01:12.8]}
23... e4 {[%clk 0:01:14.4]} 24. Bf5 {[%clk 0:01:11.6]} 24... Kf7 {[%clk
0:01:10.5]} 25. Rh3 {[%clk 0:01:07.7]} 25... Kg7 {[%clk 0:00:57.8]} 26. Rg3+
{[%clk 0:01:07.8]} 26... Kf7 {[%clk 0:00:57.9]} 27. Rh3 {[%clk 0:01:07.6]} 27...
Kg7 {[%clk 0:00:57.5]} 28. Rg3+ {[%clk 0:00:50]} 28... Kf7 {[%clk 0:00:57.3]}
1/2-1/2

[Event "*** Titled Tuesday Blitz"]
[Site "Chess.com"]
[Date "2021.02.02"]
[Round "10"]
[White "lamomiablanca"]
[Black "CoachHakia"]
[Result "1-0"]
[WhiteElo "2290"]
[BlackElo "2156"]
[TimeControl "180+1"]
[EndTime "11:54:39 PST"]
[Termination "lamomiablanca won by resignation"]

1. d4 {[%clk 0:03:00.9]} 1... d5 {[%clk 0:02:56.2]} 2. Nc3 {[%clk 0:02:59.6]}
2... Nf6 {[%clk 0:02:54.8]} 3. e4 {[%clk 0:02:59]} 3... dxe4 {[%clk 0:02:54.3]}
4. f3 {[%clk 0:02:58.9]} 4... e3 {[%clk 0:02:54.2]} 5. Bxe3 {[%clk 0:02:58.3]}
5... e6 {[%clk 0:02:51.9]} 6. Bc4 {[%clk 0:02:55.7]} 6... Be7 {[%clk 0:02:50.8]}
7. Nge2 {[%clk 0:02:55.4]} 7... O-O {[%clk 0:02:50.5]} 8. O-O {[%clk 0:02:55.4]}
8... a6 {[%clk 0:02:49.9]} 9. Ng3 {[%clk 0:02:47.1]} 9... b5 {[%clk 0:02:48.4]}
10. Bd3 {[%clk 0:02:47.2]} 10... Bb7 {[%clk 0:02:47.6]} 11. Qe2 {[%clk
0:02:46.1]} 11... Nbd7 {[%clk 0:02:41.9]} 12. Rad1 {[%clk 0:02:45.1]} 12... Nb6
{[%clk 0:02:41.4]} 13. Nce4 {[%clk 0:02:44]} 13... Nbd5 {[%clk 0:02:38.8]} 14.
Bd2 {[%clk 0:02:40.2]} 14... Rc8 {[%clk 0:02:30]} 15. c3 {[%clk 0:02:39.6]}
15... c5 {[%clk 0:02:23.7]} 16. Nxc5 {[%clk 0:02:39.2]} 16... Bxc5 {[%clk
0:02:24.6]} 17. dxc5 {[%clk 0:02:39.6]} 17... Rxc5 {[%clk 0:02:25.5]} 18. Be3
{[%clk 0:02:30.7]} 18... Rc7 {[%clk 0:02:00.4]} 19. Bb1 {[%clk 0:02:28.1]} 19...
Rd7 {[%clk 0:01:58.1]} 20. Bd4 {[%clk 0:02:20.8]} 20... Nf4 {[%clk 0:01:46.5]}
21. Qe5 {[%clk 0:02:12]} 21... Ng6 {[%clk 0:01:33.3]} 22. Qe2 {[%clk 0:02:09.9]}
22... Nf4 {[%clk 0:01:25.9]} 23. Qe3 {[%clk 0:02:04.9]} 23... N6d5 {[%clk
0:01:14.1]} 24. Qe5 {[%clk 0:02:00.4]} 24... f6 {[%clk 0:01:09.3]} 25. Qe4
{[%clk 0:01:57.7]} 25... Ng6 {[%clk 0:00:52.8]} 26. Qxe6+ {[%clk 0:01:54.8]}
26... Kh8 {[%clk 0:00:52.8]} 27. Qf5 {[%clk 0:01:46.1]} 27... Ne3 {[%clk
0:00:46.7]} 28. Qh5 {[%clk 0:01:34.6]} 28... Nxd1 {[%clk 0:00:41.9]} 29. Bxg6
{[%clk 0:01:33.6]} 29... h6 {[%clk 0:00:40.7]} 30. Rxd1 {[%clk 0:01:30.9]} 30...
b4 {[%clk 0:00:33.9]} 31. Nf5 {[%clk 0:01:30.3]} 31... bxc3 {[%clk 0:00:32.6]}
32. bxc3 {[%clk 0:01:31.2]} 1-0

[Event "*** Titled Tuesday Blitz"]
[Site "Chess.com"]
[Date "2021.02.02"]
[Round "10"]
[White "cassoulet"]
[Black "NiranjanNavalgund"]
[Result "1-0"]
[WhiteElo "2739"]
[BlackElo "2527"]
[TimeControl "180+1"]
[EndTime "11:54:43 PST"]
[Termination "cassoulet won by resignation"]

1. e4 {[%clk 0:03:00.9]} 1... e5 {[%clk 0:02:59.3]} 2. Nf3 {[%clk 0:03:00.5]}
2... Nc6 {[%clk 0:02:59.7]} 3. Bc4 {[%clk 0:03:00.7]} 3... Nf6 {[%clk
0:02:59.6]} 4. d3 {[%clk 0:03:01.1]} 4... h6 {[%clk 0:02:59.4]} 5. c3 {[%clk
0:03:01.1]} 5... d6 {[%clk 0:02:59.4]} 6. Bb3 {[%clk 0:03:01.7]} 6... g6 {[%clk
0:02:58.5]} 7. h3 {[%clk 0:03:01.7]} 7... Bg7 {[%clk 0:02:59]} 8. Nbd2 {[%clk
0:03:01.4]} 8... O-O {[%clk 0:02:59.6]} 9. Nf1 {[%clk 0:03:02]} 9... Kh7 {[%clk
0:02:58.9]} 10. g4 {[%clk 0:03:00.9]} 10... d5 {[%clk 0:02:55.9]} 11. Qe2 {[%clk
0:03:00.8]} 11... dxe4 {[%clk 0:02:53.5]} 12. dxe4 {[%clk 0:03:01.7]} 12... Nd7
{[%clk 0:02:54.4]} 13. Be3 {[%clk 0:03:00.5]} 13... Qe7 {[%clk 0:02:54.3]} 14.
O-O-O {[%clk 0:02:57]} 14... Nc5 {[%clk 0:02:54]} 15. Bc2 {[%clk 0:02:57.4]}
15... Be6 {[%clk 0:02:52.9]} 16. Kb1 {[%clk 0:02:52.6]} 16... a5 {[%clk
0:02:52.3]} 17. Ng3 {[%clk 0:02:44.3]} 17... a4 {[%clk 0:02:38.9]} 18. Nf5
{[%clk 0:02:36]} 18... gxf5 {[%clk 0:02:23.7]} 19. exf5 {[%clk 0:02:36.9]} 19...
Bxa2+ {[%clk 0:02:23]} 20. Kxa2 {[%clk 0:02:37.8]} 20... f6 {[%clk 0:02:20.2]}
21. Qc4 {[%clk 0:02:33.5]} 21... b6 {[%clk 0:02:16.3]} 22. g5 {[%clk 0:02:32.1]}
22... Na5 {[%clk 0:02:15.2]} 23. Qh4 {[%clk 0:02:19.9]} 23... Qf7+ {[%clk
0:01:43.7]} 24. Kb1 {[%clk 0:02:16.9]} 24... Qc4 {[%clk 0:01:44.2]} 25. Qh5
{[%clk 0:01:55.4]} 25... a3 {[%clk 0:01:30]} 26. Bxc5 {[%clk 0:01:53.3]} 26...
Qxc5 {[%clk 0:00:54.7]} 27. Rd7 {[%clk 0:01:49.1]} 27... Kh8 {[%clk 0:00:08.7]}
28. gxh6 {[%clk 0:01:38.2]} 28... a2+ {[%clk 0:00:09.6]} 29. Ka1 {[%clk
0:01:36.9]} 29... Kg8 {[%clk 0:00:09.2]} 30. Rxg7+ {[%clk 0:01:32.7]} 1-0

[Event "*** Titled Tuesday Blitz"]
[Site "Chess.com"]
[Date "2021.02.02"]
[Round "10"]
[White "SlavenPastar"]
[Black "manmanlai1"]
[Result "1-0"]
[WhiteElo "2627"]
[BlackElo "2452"]
[TimeControl "180+1"]
[EndTime "11:54:48 PST"]
[Termination "SlavenPastar won by resignation"]

1. d4 {[%clk 0:03:00.9]} 1... Nf6 {[%clk 0:02:58.5]} 2. Nf3 {[%clk 0:03:01.4]}
2... g6 {[%clk 0:02:58.8]} 3. c4 {[%clk 0:03:00]} 3... Bg7 {[%clk 0:02:58.6]} 4.
Nc3 {[%clk 0:03:00.6]} 4... d5 {[%clk 0:02:55.8]} 5. cxd5 {[%clk 0:02:57.4]}
5... Nxd5 {[%clk 0:02:56.7]} 6. e4 {[%clk 0:02:56.9]} 6... Nxc3 {[%clk
0:02:56.8]} 7. bxc3 {[%clk 0:02:57.8]} 7... c5 {[%clk 0:02:57.1]} 8. Be3 {[%clk
0:02:58.1]} 8... b6 {[%clk 0:02:51]} 9. Qd2 {[%clk 0:02:57.1]} 9... Bb7 {[%clk
0:02:49.3]} 10. Bb5+ {[%clk 0:02:56.1]} 10... Nd7 {[%clk 0:02:48.2]} 11. dxc5
{[%clk 0:02:53.6]} 11... bxc5 {[%clk 0:02:43.1]} 12. O-O-O {[%clk 0:02:48.8]}
12... Bc8 {[%clk 0:02:39.5]} 13. Bxc5 {[%clk 0:02:33.7]} 13... Rb8 {[%clk
0:02:36.1]} 14. Bd4 {[%clk 0:02:19.2]} 14... Rxb5 {[%clk 0:01:51.8]} 15. Bxg7
{[%clk 0:02:14.7]} 15... Rg8 {[%clk 0:01:51.1]} 16. c4 {[%clk 0:02:07.9]} 16...
Qc7 {[%clk 0:01:43.3]} 17. Bb2 {[%clk 0:01:42.7]} 17... Qxc4+ {[%clk 0:01:40.6]}
18. Kb1 {[%clk 0:01:41.6]} 18... Qc7 {[%clk 0:01:19.7]} 19. Nd4 {[%clk
0:01:32.2]} 19... Rb6 {[%clk 0:01:16.9]} 20. Rc1 {[%clk 0:01:30.5]} 20... Qb8
{[%clk 0:01:06.6]} 21. Ka1 {[%clk 0:01:22.5]} 21... Bb7 {[%clk 0:01:02.1]} 22.
f3 {[%clk 0:01:21.5]} 22... g5 {[%clk 0:01:01.3]} 23. Rhd1 {[%clk 0:01:17.6]}
23... Rgg6 {[%clk 0:00:56]} 24. Nf5 {[%clk 0:01:18.1]} 24... Bc8 {[%clk
0:00:48.8]} 25. Qc3 {[%clk 0:01:07.6]} 1-0

[Event "*** Titled Tuesday Blitz"]
[Site "Chess.com"]
[Date "2021.02.02"]
[Round "10"]
[White "strelec64"]
[Black "noblerone"]
[Result "0-1"]
[WhiteElo "2492"]
[BlackElo "2419"]
[TimeControl "180+1"]
[EndTime "11:54:48 PST"]
[Termination "noblerone won on time"]

1. d4 {[%clk 0:02:58.9]} 1... d5 {[%clk 0:02:58.9]} 2. Nf3 {[%clk 0:02:56.1]}
2... Nf6 {[%clk 0:02:58.5]} 3. c4 {[%clk 0:02:55.9]} 3... c6 {[%clk 0:02:58.8]}
4. Nc3 {[%clk 0:02:54.9]} 4... dxc4 {[%clk 0:02:59]} 5. a4 {[%clk 0:02:53.6]}
5... Bf5 {[%clk 0:02:58.8]} 6. e3 {[%clk 0:02:53.2]} 6... e6 {[%clk 0:02:58.8]}
7. Bxc4 {[%clk 0:02:53.1]} 7... Bb4 {[%clk 0:02:59]} 8. O-O {[%clk 0:02:52.8]}
8... O-O {[%clk 0:02:59.4]} 9. h3 {[%clk 0:02:52.7]} 9... h6 {[%clk 0:02:46.3]}
10. Qb3 {[%clk 0:02:46.1]} 10... Qe7 {[%clk 0:02:33.8]} 11. Na2 {[%clk 0:02:40]}
11... Bd6 {[%clk 0:02:28.4]} 12. Bd3 {[%clk 0:02:39.7]} 12... Bxd3 {[%clk
0:01:48.4]} 13. Qxd3 {[%clk 0:02:39.3]} 13... Nbd7 {[%clk 0:01:44.9]} 14. e4
{[%clk 0:02:28.4]} 14... e5 {[%clk 0:01:44.6]} 15. Nc3 {[%clk 0:02:27.3]} 15...
Rad8 {[%clk 0:01:38.3]} 16. Qe2 {[%clk 0:02:06.2]} 16... Rfe8 {[%clk 0:01:29.5]}
17. dxe5 {[%clk 0:01:24.3]} 17... Nxe5 {[%clk 0:01:26.9]} 18. Nd4 {[%clk
0:01:23.6]} 18... Bb8 {[%clk 0:01:19.2]} 19. Nf5 {[%clk 0:01:23.1]} 19... Qe6
{[%clk 0:01:14.1]} 20. f3 {[%clk 0:01:15.8]} 20... Ng6 {[%clk 0:01:11.8]} 0-1